[Event "*** Titled Tuesday Blitz"]
[Site "Chess.com"]
[Date "2020.12.01"]
[Round "2"]
[White "gmcorrales"]
[Black "sergeikim"]
[Result "1/2-1/2"]
[WhiteElo "2787"]
[BlackElo "2512"]
[TimeControl "180+1"]
[EndTime "10:17:21 PST"]
[Termination "Game drawn by repetition"]

1. e4 {[%clk 0:02:41.3]} 1... e5 {[%clk 0:02:59.5]} 2. Nf3 {[%clk 0:02:40.2]}
2... Nc6 {[%clk 0:02:59.4]} 3. Bb5 {[%clk 0:02:38.7]} 3... a6 {[%clk 0:02:59.3]}
4. Ba4 {[%clk 0:02:38.7]} 4... Nf6 {[%clk 0:02:59.2]} 5. O-O {[%clk 0:02:39.3]}
5... b5 {[%clk 0:02:59]} 6. Bb3 {[%clk 0:02:39.2]} 6... Bc5 {[%clk 0:02:59.3]}
7. c3 {[%clk 0:02:37.5]} 7... d6 {[%clk 0:02:59.3]} 8. d4 {[%clk 0:02:36.4]}
8... Bb6 {[%clk 0:02:59.4]} 9. Be3 {[%clk 0:02:36.4]} 9... h6 {[%clk 0:02:54.6]}
10. dxe5 {[%clk 0:02:20.1]} 10... Nxe5 {[%clk 0:02:53.1]} 11. Nxe5 {[%clk
0:02:15.7]} 11... dxe5 {[%clk 0:02:51.5]} 12. Qxd8+ {[%clk 0:02:16.6]} 12...
Kxd8 {[%clk 0:02:51.1]} 13. Bxb6 {[%clk 0:02:17.5]} 13... cxb6 {[%clk
0:02:50.6]} 14. Bxf7 {[%clk 0:02:17.6]} 14... Ke7 {[%clk 0:02:50.2]} 15. Bb3
{[%clk 0:02:16.2]} 15... Bb7 {[%clk 0:02:49.3]} 16. f3 {[%clk 0:02:16.2]} 16...
Rad8 {[%clk 0:02:48.7]} 17. Na3 {[%clk 0:02:05.9]} 17... Rd2 {[%clk 0:02:47.5]}
18. Rf2 {[%clk 0:01:28.5]} 18... Rhd8 {[%clk 0:02:46.3]} 19. Raf1 {[%clk
0:01:28.3]} 19... R2d7 {[%clk 0:02:38.5]} 20. Nb1 {[%clk 0:01:16.8]} 20... a5
{[%clk 0:02:34.4]} 21. a3 {[%clk 0:01:12.5]} 21... Ba6 {[%clk 0:02:30.8]} 22.
Re1 {[%clk 0:01:07.5]} 22... Nh5 {[%clk 0:02:27.8]} 23. g3 {[%clk 0:01:06.9]}
23... Nf6 {[%clk 0:02:25.7]} 24. Rc2 {[%clk 0:01:02.5]} 24... Rd3 {[%clk
0:02:17.2]} 25. Kg2 {[%clk 0:00:57.7]} 25... g5 {[%clk 0:02:14]} 26. Rf2 {[%clk
0:00:23]} 26... Bb7 {[%clk 0:02:09.4]} 27. Bc2 {[%clk 0:00:22.5]} 27... R3d6
{[%clk 0:02:07]} 28. h3 {[%clk 0:00:22.4]} 28... Nd7 {[%clk 0:02:00.3]} 29. Ree2
{[%clk 0:00:20.4]} 29... Nc5 {[%clk 0:01:59.6]} 30. Nd2 {[%clk 0:00:19.9]} 30...
h5 {[%clk 0:01:53]} 31. g4 {[%clk 0:00:19.9]} 31... Ne6 {[%clk 0:01:48.6]} 32.
Nf1 {[%clk 0:00:16.4]} 32... Nf4+ {[%clk 0:01:47.4]} 33. Kg3 {[%clk 0:00:16.8]}
33... h4+ {[%clk 0:01:44.2]} 34. Kh2 {[%clk 0:00:17.1]} 34... Nxe2 {[%clk
0:01:43.2]} 35. Rxe2 {[%clk 0:00:18]} 35... Bc8 {[%clk 0:01:40.2]} 36. Rg2
{[%clk 0:00:12.8]} 36... Be6 {[%clk 0:01:38.6]} 37. Ne3 {[%clk 0:00:13.2]} 37...
Rd2 {[%clk 0:01:37.2]} 38. Nd5+ {[%clk 0:00:13.6]} 38... R2xd5 {[%clk
0:01:35.3]} 39. exd5 {[%clk 0:00:13.7]} 39... Bxd5 {[%clk 0:01:35.8]} 40. Re2
{[%clk 0:00:12.6]} 40... Kd6 {[%clk 0:01:28.1]} 41. Kg2 {[%clk 0:00:09.8]} 41...
Kc5 {[%clk 0:01:21.5]} 42. Kf2 {[%clk 0:00:09]} 42... Kd6 {[%clk 0:01:17]} 43.
Rd2 {[%clk 0:00:06.7]} 43... Kc6 {[%clk 0:01:11.3]} 44. Be4 {[%clk 0:00:06]}
44... Rd6 {[%clk 0:01:11.1]} 45. Ke3 {[%clk 0:00:05.2]} 45... a4 {[%clk
0:01:06.3]} 46. Rd3 {[%clk 0:00:03.9]} 46... Kc5 {[%clk 0:01:05.6]} 47. Rd1
{[%clk 0:00:02.7]} 47... Kc6 {[%clk 0:01:03.9]} 48. Rd2 {[%clk 0:00:02.6]} 48...
Kc5 {[%clk 0:01:03.9]} 49. Rd3 {[%clk 0:00:02.8]} 49... Kc6 {[%clk 0:01:03.5]}
50. Rd2 {[%clk 0:00:02.9]} 50... Kc5 {[%clk 0:01:03.5]} 51. Rd3 {[%clk 0:00:03]}
51... Kc6 {[%clk 0:01:03.7]} 52. Rd2 {[%clk 0:00:03.4]} 1/2-1/2

[Event "*** Titled Tuesday Blitz"]
[Site "Chess.com"]
[Date "2020.12.01"]
[Round "2"]
[White "beto-betun"]
[Black "Alindsay211"]
[Result "0-1"]
[WhiteElo "2207"]
[BlackElo "2422"]
[TimeControl "180+1"]
[EndTime "10:17:22 PST"]
[Termination "Alindsay211 won by resignation"]

1. d4 {[%clk 0:03:00.9]} 1... d5 {[%clk 0:02:57.9]} 2. Nf3 {[%clk 0:03:00.9]}
2... Nf6 {[%clk 0:02:56.4]} 3. g3 {[%clk 0:03:01.1]} 3... g6 {[%clk 0:02:54.6]}
4. Bg2 {[%clk 0:03:01.1]} 4... Bg7 {[%clk 0:02:53.7]} 5. O-O {[%clk 0:03:01.5]}
5... O-O {[%clk 0:02:50.9]} 6. c4 {[%clk 0:03:01.4]} 6... c6 {[%clk 0:02:47.2]}
7. b3 {[%clk 0:03:00.7]} 7... a6 {[%clk 0:02:43.6]} 8. Bb2 {[%clk 0:02:58.8]}
8... b5 {[%clk 0:02:40.5]} 9. cxd5 {[%clk 0:02:55.4]} 9... cxd5 {[%clk
0:02:37.9]} 10. Nc3 {[%clk 0:02:46.8]} 10... Bb7 {[%clk 0:02:31.7]} 11. e3
{[%clk 0:02:45.2]} 11... Nc6 {[%clk 0:02:31.3]} 12. Rc1 {[%clk 0:02:32]} 12...
Rc8 {[%clk 0:02:24.9]} 13. Qe2 {[%clk 0:02:19.2]} 13... e6 {[%clk 0:02:17.7]}
14. Rfd1 {[%clk 0:02:18.3]} 14... Qd6 {[%clk 0:01:47.9]} 15. Rd2 {[%clk
0:02:05.5]} 15... Rc7 {[%clk 0:01:34.6]} 16. h3 {[%clk 0:01:59.8]} 16... Rfc8
{[%clk 0:01:31.1]} 17. a3 {[%clk 0:01:51.4]} 17... Na5 {[%clk 0:01:09.2]} 18.
Qd1 {[%clk 0:01:43]} 18... h5 {[%clk 0:00:28.5]} 19. Ne5 {[%clk 0:01:39.7]}
19... Nd7 {[%clk 0:00:23.8]} 20. f4 {[%clk 0:01:28.5]} 20... Nxe5 {[%clk
0:00:21.8]} 21. fxe5 {[%clk 0:01:29.4]} 21... Qe7 {[%clk 0:00:21.4]} 22. Bf1
{[%clk 0:00:43.9]} 22... Bh6 {[%clk 0:00:19.5]} 23. Kf2 {[%clk 0:00:43.2]} 23...
f6 {[%clk 0:00:18.1]} 24. Bd3 {[%clk 0:00:18.3]} 24... fxe5 {[%clk 0:00:14.6]}
25. Bxg6 {[%clk 0:00:18.8]} 25... Qf6+ {[%clk 0:00:13.8]} 26. Kg2 {[%clk
0:00:19.4]} 26... Qxg6 {[%clk 0:00:13.6]} 27. Qf3 {[%clk 0:00:17.3]} 27... e4
{[%clk 0:00:10.3]} 28. Qf2 {[%clk 0:00:15.7]} 28... Nxb3 {[%clk 0:00:09.3]} 29.
Rcd1 {[%clk 0:00:14.4]} 29... Nxd2 {[%clk 0:00:09.3]} 30. Rxd2 {[%clk
0:00:15.3]} 30... Rxc3 {[%clk 0:00:09.2]} 31. Bxc3 {[%clk 0:00:16.2]} 31... Rxc3
{[%clk 0:00:10.1]} 32. Rd1 {[%clk 0:00:13.5]} 32... Rxe3 {[%clk 0:00:09.2]} 33.
Rf1 {[%clk 0:00:13.7]} 33... Rf3 {[%clk 0:00:09.2]} 0-1

[Event "*** Titled Tuesday Blitz"]
[Site "Chess.com"]
[Date "2020.12.01"]
[Round "2"]
[White "GregShahade"]
[Black "Eliwood44"]
[Result "1-0"]
[WhiteElo "2699"]
[BlackElo "2469"]
[TimeControl "180+1"]
[EndTime "10:17:23 PST"]
[Termination "GregShahade won on time"]

1. e4 {[%clk 0:02:59.2]} 1... e5 {[%clk 0:03:00]} 2. Nf3 {[%clk 0:02:59.5]} 2...
Nc6 {[%clk 0:03:00.3]} 3. Bb5 {[%clk 0:03:00]} 3... a6 {[%clk 0:02:59.2]} 4. Ba4
{[%clk 0:03:00]} 4... d6 {[%clk 0:02:59.4]} 5. O-O {[%clk 0:02:58.9]} 5... Bd7
{[%clk 0:02:59.5]} 6. d4 {[%clk 0:02:59.2]} 6... b5 {[%clk 0:02:50.3]} 7. Bb3
{[%clk 0:02:59.4]} 7... exd4 {[%clk 0:02:30]} 8. c3 {[%clk 0:02:57.1]} 8... d3
{[%clk 0:02:05.6]} 9. Qxd3 {[%clk 0:02:56]} 9... Be7 {[%clk 0:02:00.2]} 10. a4
{[%clk 0:02:54.6]} 10... Nf6 {[%clk 0:01:54.9]} 11. Na3 {[%clk 0:02:36.1]} 11...
b4 {[%clk 0:01:45.7]} 12. cxb4 {[%clk 0:02:28.9]} 12... Nxb4 {[%clk 0:01:40.7]}
13. Qc4 {[%clk 0:02:17.8]} 13... d5 {[%clk 0:01:38.2]} 14. exd5 {[%clk 0:02:18]}
14... O-O {[%clk 0:01:35]} 15. Bf4 {[%clk 0:01:46.9]} 15... Nbxd5 {[%clk
0:01:29]} 16. Be5 {[%clk 0:01:40]} 16... Rb8 {[%clk 0:01:09.6]} 17. Bc2 {[%clk
0:01:27.5]} 17... Rb4 {[%clk 0:01:01.4]} 18. Qxa6 {[%clk 0:01:24.4]} 18... Bg4
{[%clk 0:00:31.1]} 19. Nd4 {[%clk 0:01:17.5]} 19... Rb6 {[%clk 0:00:14.8]} 20.
Qc4 {[%clk 0:01:08.1]} 20... c5 {[%clk 0:00:13.5]} 21. Nf5 {[%clk 0:01:02.6]}
21... Bxf5 {[%clk 0:00:13]} 22. Bxf5 {[%clk 0:01:03.5]} 22... Rb4 {[%clk
0:00:13.2]} 23. Qc2 {[%clk 0:01:00.1]} 23... g6 {[%clk 0:00:11.9]} 24. Bd3
{[%clk 0:00:50.2]} 24... Ng4 {[%clk 0:00:11.6]} 25. Bg3 {[%clk 0:00:45.7]} 25...
Bd6 {[%clk 0:00:11.5]} 26. Nc4 {[%clk 0:00:43]} 26... Bxg3 {[%clk 0:00:11.1]}
27. hxg3 {[%clk 0:00:43.9]} 27... Qg5 {[%clk 0:00:10.5]} 28. Be2 {[%clk
0:00:30.7]} 28... Ndf6 {[%clk 0:00:10.5]} 29. f3 {[%clk 0:00:23.8]} 29... Rxc4
{[%clk 0:00:09]} 30. Bxc4 {[%clk 0:00:14.5]} 30... Qe3+ {[%clk 0:00:09.1]} 31.
Rf2 {[%clk 0:00:14.7]} 31... Nxf2 {[%clk 0:00:06.8]} 32. Qxf2 {[%clk 0:00:15.6]}
32... Qh6 {[%clk 0:00:03.9]} 33. a5 {[%clk 0:00:15.2]} 1-0

[Event "*** Titled Tuesday Blitz"]
[Site "Chess.com"]
[Date "2020.12.01"]
[Round "2"]
[White "vanyakuba"]
[Black "Reader777"]
[Result "0-1"]
[WhiteElo "2468"]
[BlackElo "2687"]
[TimeControl "180+1"]
[EndTime "10:17:25 PST"]
[Termination "Reader777 won by resignation"]

1. e4 {[%clk 0:03:00.2]} 1... c5 {[%clk 0:02:59.6]} 2. c3 {[%clk 0:03:00.3]}
2... Nf6 {[%clk 0:02:58.5]} 3. e5 {[%clk 0:03:00.3]} 3... Nd5 {[%clk 0:02:58.6]}
4. d4 {[%clk 0:03:00.9]} 4... cxd4 {[%clk 0:02:58.9]} 5. Nf3 {[%clk 0:03:01.6]}
5... Nc6 {[%clk 0:02:58]} 6. cxd4 {[%clk 0:03:01.9]} 6... d6 {[%clk 0:02:57.9]}
7. Bc4 {[%clk 0:03:01.2]} 7... Nb6 {[%clk 0:02:54.3]} 8. Bb5 {[%clk 0:03:01.1]}
8... a6 {[%clk 0:02:50.5]} 9. Bxc6+ {[%clk 0:02:54.2]} 9... bxc6 {[%clk
0:02:50.8]} 10. h3 {[%clk 0:02:36.9]} 10... d5 {[%clk 0:02:49.9]} 11. O-O {[%clk
0:02:28.2]} 11... Bf5 {[%clk 0:02:49.3]} 12. b3 {[%clk 0:02:22.4]} 12... e6
{[%clk 0:02:48.8]} 13. Ba3 {[%clk 0:02:16.7]} 13... Bxa3 {[%clk 0:02:43.8]} 14.
Nxa3 {[%clk 0:02:16.7]} 14... Qe7 {[%clk 0:02:42]} 15. Nc2 {[%clk 0:02:04.4]}
15... O-O {[%clk 0:02:39.6]} 16. Ne3 {[%clk 0:02:04.2]} 16... Bg6 {[%clk
0:02:36.2]} 17. Qd2 {[%clk 0:01:56.4]} 17... Be4 {[%clk 0:02:29.3]} 18. Ne1
{[%clk 0:01:39.2]} 18... c5 {[%clk 0:02:22.8]} 19. dxc5 {[%clk 0:01:30.7]} 19...
Qxc5 {[%clk 0:02:21.7]} 20. Rc1 {[%clk 0:01:31.2]} 20... Qe7 {[%clk 0:02:19.9]}
21. N1c2 {[%clk 0:01:20.6]} 21... Rfc8 {[%clk 0:02:16.5]} 22. Nd4 {[%clk
0:01:20.4]} 22... Nd7 {[%clk 0:02:12]} 23. f4 {[%clk 0:01:15.1]} 23... Bg6
{[%clk 0:02:03.1]} 24. f5 {[%clk 0:01:05.7]} 24... exf5 {[%clk 0:01:57.5]} 25.
Nc6 {[%clk 0:00:56.9]} 25... Qe6 {[%clk 0:01:33]} 26. Nxd5 {[%clk 0:00:46.4]}
26... Kh8 {[%clk 0:01:32]} 27. Nf4 {[%clk 0:00:28.1]} 27... Qe8 {[%clk
0:01:31.2]} 28. Rfe1 {[%clk 0:00:26.4]} 28... Nf8 {[%clk 0:01:20.3]} 29. Nb4
{[%clk 0:00:11]} 29... Rxc1 {[%clk 0:01:16.6]} 30. Qxc1 {[%clk 0:00:08.7]} 30...
a5 {[%clk 0:01:16.1]} 31. Nbd5 {[%clk 0:00:08.5]} 31... Rc8 {[%clk 0:01:15.6]}
32. Qe3 {[%clk 0:00:08.4]} 32... Rc2 {[%clk 0:01:02.6]} 33. Re2 {[%clk
0:00:08.2]} 33... Rc6 {[%clk 0:01:00.7]} 34. h4 {[%clk 0:00:07.2]} 34... h6
{[%clk 0:00:58]} 35. h5 {[%clk 0:00:07]} 35... Bh7 {[%clk 0:00:58.5]} 36. Kh2
{[%clk 0:00:07.7]} 36... a4 {[%clk 0:00:54.3]} 37. bxa4 {[%clk 0:00:07.4]} 37...
Rc4 {[%clk 0:00:52.5]} 38. Qd3 {[%clk 0:00:05.6]} 38... Rxa4 {[%clk 0:00:51.2]}
39. a3 {[%clk 0:00:05]} 39... Qd8 {[%clk 0:00:50.3]} 40. Qf3 {[%clk 0:00:02.5]}
40... Qh4+ {[%clk 0:00:49.4]} 41. Kg1 {[%clk 0:00:02.6]} 41... Rd4 {[%clk
0:00:46.4]} 42. Qf2 {[%clk 0:00:02.6]} 42... Rd1+ {[%clk 0:00:45.5]} 0-1

[Event "*** Titled Tuesday Blitz"]
[Site "Chess.com"]
[Date "2020.12.01"]
[Round "2"]
[White "KventinKarantino"]
[Black "davidkalashian"]
[Result "1/2-1/2"]
[WhiteElo "2303"]
[BlackElo "2538"]
[TimeControl "180+1"]
[EndTime "10:17:25 PST"]
[Termination "Game drawn by repetition"]

1. e4 {[%clk 0:02:19.1]} 1... c6 {[%clk 0:02:56]} 2. d4 {[%clk 0:02:18.8]} 2...
g6 {[%clk 0:02:56.9]} 3. Nc3 {[%clk 0:02:19.4]} 3... Bg7 {[%clk 0:02:57.3]} 4.
f4 {[%clk 0:02:19.2]} 4... d5 {[%clk 0:02:57.3]} 5. e5 {[%clk 0:02:19.2]} 5...
h5 {[%clk 0:02:56.8]} 6. h3 {[%clk 0:02:19.3]} 6... Nh6 {[%clk 0:02:57]} 7. Nf3
{[%clk 0:02:19.3]} 7... Bf5 {[%clk 0:02:56.3]} 8. Be3 {[%clk 0:02:17.1]} 8...
Be4 {[%clk 0:02:56.1]} 9. Ng5 {[%clk 0:02:15.9]} 9... Bf5 {[%clk 0:02:47.1]} 10.
Qd2 {[%clk 0:02:08.9]} 10... Nd7 {[%clk 0:02:42.7]} 11. Be2 {[%clk 0:02:06.9]}
11... Nf8 {[%clk 0:02:42.3]} 12. O-O-O {[%clk 0:02:00.7]} 12... Ne6 {[%clk
0:02:42.1]} 13. Rdf1 {[%clk 0:01:51.2]} 13... b5 {[%clk 0:02:35.9]} 14. g4
{[%clk 0:01:48.8]} 14... hxg4 {[%clk 0:02:31.2]} 15. hxg4 {[%clk 0:01:48.5]}
15... Nxg4 {[%clk 0:02:31.8]} 16. Rxh8+ {[%clk 0:01:42.2]} 16... Bxh8 {[%clk
0:02:32.7]} 17. Bxg4 {[%clk 0:01:40.9]} 17... Bxg4 {[%clk 0:02:31.7]} 18. Qh2
{[%clk 0:01:31.7]} 18... Bh5 {[%clk 0:02:12.3]} 19. f5 {[%clk 0:01:25.8]} 19...
Nxg5 {[%clk 0:02:06.9]} 20. Bxg5 {[%clk 0:01:24.9]} 20... b4 {[%clk 0:01:59.6]}
21. fxg6 {[%clk 0:01:24.1]} 21... fxg6 {[%clk 0:01:55.7]} 22. Qf4 {[%clk
0:01:19.7]} 22... bxc3 {[%clk 0:01:42.8]} 23. e6 {[%clk 0:01:19.2]} 23... Bf6
{[%clk 0:01:36.9]} 24. Bxf6 {[%clk 0:00:49.3]} 24... exf6 {[%clk 0:01:37.8]} 25.
Qh6 {[%clk 0:00:49.5]} 25... Qe7 {[%clk 0:00:41.2]} 26. Qh8+ {[%clk 0:00:48.5]}
26... Qf8 {[%clk 0:00:41]} 27. Qh7 {[%clk 0:00:48.7]} 27... Rd8 {[%clk
0:00:32.5]} 28. Re1 {[%clk 0:00:35.7]} 28... cxb2+ {[%clk 0:00:14.8]} 29. Kb1
{[%clk 0:00:34.6]} 29... Qe7 {[%clk 0:00:06]} 30. Qg8+ {[%clk 0:00:33.2]} 30...
Qf8 {[%clk 0:00:05.9]} 31. Qh7 {[%clk 0:00:32.9]} 31... Qe7 {[%clk 0:00:05.8]}
32. Qg8+ {[%clk 0:00:31]} 32... Qf8 {[%clk 0:00:06]} 33. Qh7 {[%clk 0:00:18.9]}
1/2-1/2

[Event "*** Titled Tuesday Blitz"]
[Site "Chess.com"]
[Date "2020.12.01"]
[Round "2"]
[White "JonahWillow"]
[Black "Elprofessor21"]
[Result "1-0"]
[WhiteElo "2665"]
[BlackElo "2414"]
[TimeControl "180+1"]
[EndTime "10:17:26 PST"]
[Termination "JonahWillow won by resignation"]

1. e4 {[%clk 0:03:00.2]} 1... c5 {[%clk 0:02:57.5]} 2. Nf3 {[%clk 0:02:59.5]}
2... g6 {[%clk 0:02:48]} 3. d4 {[%clk 0:02:57.4]} 3... cxd4 {[%clk 0:02:48.2]}
4. Nxd4 {[%clk 0:02:58.3]} 4... Bg7 {[%clk 0:02:48.2]} 5. c4 {[%clk 0:02:57.7]}
5... Nc6 {[%clk 0:02:48.3]} 6. Be3 {[%clk 0:02:57.6]} 6... Nf6 {[%clk
0:02:47.9]} 7. Nc3 {[%clk 0:02:57.7]} 7... O-O {[%clk 0:02:47.8]} 8. Be2 {[%clk
0:02:57.4]} 8... d6 {[%clk 0:02:47.8]} 9. O-O {[%clk 0:02:57.5]} 9... Bd7 {[%clk
0:02:47.8]} 10. Nc2 {[%clk 0:02:56.7]} 10... Rc8 {[%clk 0:02:44]} 11. Rc1 {[%clk
0:02:54.9]} 11... Ne5 {[%clk 0:02:40]} 12. b3 {[%clk 0:02:55.3]} 12... b5 {[%clk
0:02:35]} 13. Nxb5 {[%clk 0:02:53.6]} 13... Bxb5 {[%clk 0:02:29.9]} 14. cxb5
{[%clk 0:02:54.5]} 14... Nxe4 {[%clk 0:02:30.1]} 15. Bxa7 {[%clk 0:02:52.4]}
15... Nc3 {[%clk 0:02:05.1]} 16. Qd2 {[%clk 0:02:47.5]} 16... Nxa2 {[%clk
0:02:02.4]} 17. Ra1 {[%clk 0:02:32.6]} 17... Nc3 {[%clk 0:02:01.5]} 18. b6
{[%clk 0:02:33.1]} 18... Ne4 {[%clk 0:01:58.6]} 19. Qe3 {[%clk 0:02:09.8]} 19...
Nc5 {[%clk 0:01:34.2]} 20. b4 {[%clk 0:02:08.7]} 20... Ncd7 {[%clk 0:01:28.4]}
21. Na3 {[%clk 0:01:51.6]} 21... Nc6 {[%clk 0:01:19]} 22. Ba6 {[%clk 0:01:20.8]}
22... Bxa1 {[%clk 0:00:44]} 23. Rxa1 {[%clk 0:01:16.3]} 23... Nxb4 {[%clk
0:00:18]} 24. Bxc8 {[%clk 0:01:15.5]} 24... Qxc8 {[%clk 0:00:17.5]} 25. Qxe7
{[%clk 0:01:16.1]} 25... Qc3 {[%clk 0:00:17.1]} 26. Qe1 {[%clk 0:01:04]} 26...
Qb3 {[%clk 0:00:04.6]} 27. Rb1 {[%clk 0:00:46.9]} 27... Qxa3 {[%clk 0:00:04]}
28. Qxb4 {[%clk 0:00:47.5]} 28... Qa6 {[%clk 0:00:03.2]} 29. Qxd6 {[%clk
0:00:45.5]} 29... Qa2 {[%clk 0:00:02]} 30. Rd1 {[%clk 0:00:23.7]} 30... Rd8
{[%clk 0:00:02.4]} 31. Qc7 {[%clk 0:00:17.1]} 31... Re8 {[%clk 0:00:02.5]} 32.
Qxd7 {[%clk 0:00:16.9]} 32... Qe2 {[%clk 0:00:02.9]} 33. h3 {[%clk 0:00:15.7]}
1-0

[Event "*** Titled Tuesday Blitz"]
[Site "Chess.com"]
[Date "2020.12.01"]
[Round "2"]
[White "DouglasTrawz"]
[Black "lacafi"]
[Result "1-0"]
[WhiteElo "2516"]
[BlackElo "2206"]
[TimeControl "180+1"]
[EndTime "10:17:26 PST"]
[Termination "DouglasTrawz won on time"]

1. e4 {[%clk 0:03:00.1]} 1... c6 {[%clk 0:02:57.7]} 2. d4 {[%clk 0:02:59.8]}
2... d5 {[%clk 0:02:58.6]} 3. exd5 {[%clk 0:03:00.7]} 3... cxd5 {[%clk
0:02:57.6]} 4. Bd3 {[%clk 0:03:01.3]} 4... Nf6 {[%clk 0:02:55.2]} 5. c3 {[%clk
0:03:00.4]} 5... Nc6 {[%clk 0:02:54.7]} 6. Bf4 {[%clk 0:03:00.2]} 6... g6 {[%clk
0:02:54.1]} 7. Nf3 {[%clk 0:02:58.4]} 7... Bg7 {[%clk 0:02:54.6]} 8. Nbd2 {[%clk
0:02:58.6]} 8... O-O {[%clk 0:02:54.7]} 9. O-O {[%clk 0:02:58.9]} 9... a6 {[%clk
0:02:54.1]} 10. Re1 {[%clk 0:02:58.7]} 10... b5 {[%clk 0:02:54.1]} 11. Nb3
{[%clk 0:02:57.8]} 11... Bf5 {[%clk 0:02:47.6]} 12. Bxf5 {[%clk 0:02:57]} 12...
gxf5 {[%clk 0:02:45.3]} 13. Ne5 {[%clk 0:02:57.9]} 13... Nxe5 {[%clk 0:02:35.2]}
14. dxe5 {[%clk 0:02:58]} 14... Ne4 {[%clk 0:02:26.7]} 15. f3 {[%clk 0:02:58.2]}
15... Qb6+ {[%clk 0:02:25.8]} 16. Be3 {[%clk 0:02:58.6]} 16... Qg6 {[%clk
0:01:50.6]} 17. fxe4 {[%clk 0:02:53.3]} 17... dxe4 {[%clk 0:01:51.5]} 18. Bf4
{[%clk 0:02:49.7]} 18... Rad8 {[%clk 0:01:47]} 19. Nd4 {[%clk 0:02:44.5]} 19...
Rd5 {[%clk 0:01:42.8]} 20. Re3 {[%clk 0:02:38.1]} 20... Kh8 {[%clk 0:01:28.9]}
21. Rg3 {[%clk 0:02:37.7]} 21... Qb6 {[%clk 0:01:28.4]} 22. Kh1 {[%clk
0:02:08.2]} 22... Bxe5 {[%clk 0:01:20.9]} 23. Bxe5+ {[%clk 0:02:08.4]} 23...
Rxe5 {[%clk 0:00:45.1]} 24. Qh5 {[%clk 0:02:07.7]} 24... b4 {[%clk 0:00:29]} 25.
Rf1 {[%clk 0:01:51]} 25... bxc3 {[%clk 0:00:26.3]} 26. bxc3 {[%clk 0:01:51.9]}
26... e3 {[%clk 0:00:22.8]} 27. Qg5 {[%clk 0:01:49.3]} 27... Qf6 {[%clk
0:00:20.8]} 28. Qxf6+ {[%clk 0:01:42.6]} 28... exf6 {[%clk 0:00:21.7]} 29. Re1
{[%clk 0:01:36]} 29... f4 {[%clk 0:00:21]} 30. Rf3 {[%clk 0:01:36.3]} 30... Re4
{[%clk 0:00:20.7]} 31. g3 {[%clk 0:01:36.5]} 31... fxg3 {[%clk 0:00:18.5]} 32.
hxg3 {[%clk 0:01:37.4]} 32... Rb8 {[%clk 0:00:16.1]} 33. Rfxe3 {[%clk
0:01:35.4]} 33... Rxe3 {[%clk 0:00:15.8]} 34. Rxe3 {[%clk 0:01:35.6]} 34... Rb2
{[%clk 0:00:16.6]} 35. Nf5 {[%clk 0:01:30.6]} 35... h5 {[%clk 0:00:15.2]} 36. a4
{[%clk 0:01:30.1]} 36... Ra2 {[%clk 0:00:14.3]} 37. Re4 {[%clk 0:01:30.3]} 37...
Kh7 {[%clk 0:00:13.6]} 38. Ne3 {[%clk 0:01:20.8]} 38... Kg6 {[%clk 0:00:13.2]}
39. Nd5 {[%clk 0:01:19.2]} 39... f5 {[%clk 0:00:12.4]} 40. Rc4 {[%clk
0:01:16.7]} 40... Kg5 {[%clk 0:00:12]} 41. Nc7 {[%clk 0:01:15.1]} 41... a5
{[%clk 0:00:11.7]} 42. Nd5 {[%clk 0:01:11.1]} 42... f6 {[%clk 0:00:11.5]} 43.
Rf4 {[%clk 0:01:05.4]} 43... Ra3 {[%clk 0:00:10.1]} 44. Kg2 {[%clk 0:01:03.7]}
44... Ra2+ {[%clk 0:00:09.8]} 45. Kf3 {[%clk 0:01:04.2]} 45... Ra3 {[%clk
0:00:10.7]} 46. Ke3 {[%clk 0:01:03.1]} 46... Ra2 {[%clk 0:00:07.8]} 47. Kd3
{[%clk 0:01:01.9]} 47... Rg2 {[%clk 0:00:08.1]} 48. Rf3 {[%clk 0:01:01.3]} 48...
Kg4 {[%clk 0:00:08.5]} 49. Rxf5 {[%clk 0:00:56.5]} 49... Rxg3+ {[%clk
0:00:08.5]} 50. Ke4 {[%clk 0:00:56.2]} 50... Rg1 {[%clk 0:00:07.3]} 51. Nxf6+
{[%clk 0:00:55.8]} 51... Kh3 {[%clk 0:00:05.7]} 52. Rxh5+ {[%clk 0:00:56]} 1-0

[Event "*** Titled Tuesday Blitz"]
[Site "Chess.com"]
[Date "2020.12.01"]
[Round "2"]
[White "Zmeeed63"]
[Black "HouseOfDurin"]
[Result "1-0"]
[WhiteElo "2387"]
[BlackElo "2114"]
[TimeControl "180+1"]
[EndTime "10:17:28 PST"]
[Termination "Zmeeed63 won on time"]

1. d4 {[%clk 0:03:00]} 1... Nf6 {[%clk 0:02:58.4]} 2. c4 {[%clk 0:03:00.1]} 2...
c5 {[%clk 0:02:58.8]} 3. d5 {[%clk 0:02:59]} 3... b5 {[%clk 0:02:59.2]} 4. cxb5
{[%clk 0:02:56.4]} 4... a6 {[%clk 0:02:59.7]} 5. Nc3 {[%clk 0:02:56]} 5... axb5
{[%clk 0:02:59]} 6. e4 {[%clk 0:02:55.6]} 6... b4 {[%clk 0:02:57.6]} 7. Nb5
{[%clk 0:02:56]} 7... d6 {[%clk 0:02:54.7]} 8. Bf4 {[%clk 0:02:55]} 8... Nbd7
{[%clk 0:02:54.2]} 9. Nf3 {[%clk 0:02:14.6]} 9... Ng4 {[%clk 0:02:26.4]} 10. h3
{[%clk 0:01:41]} 10... Nge5 {[%clk 0:02:25.2]} 11. Nxe5 {[%clk 0:01:40.6]} 11...
dxe5 {[%clk 0:02:25.5]} 12. Bg5 {[%clk 0:01:35.1]} 12... f6 {[%clk 0:02:12.7]}
13. Be3 {[%clk 0:01:29.2]} 13... Qb6 {[%clk 0:00:52.4]} 14. a4 {[%clk
0:01:16.1]} 14... g6 {[%clk 0:00:21.8]} 15. Bd3 {[%clk 0:01:14.1]} 15... Bg7
{[%clk 0:00:21.6]} 16. Qe2 {[%clk 0:01:11.3]} 16... O-O {[%clk 0:00:21.3]} 17.
O-O {[%clk 0:01:00.9]} 17... Ra5 {[%clk 0:00:20]} 18. Bc4 {[%clk 0:00:51.5]}
18... Kh8 {[%clk 0:00:19]} 19. Rfd1 {[%clk 0:00:35.1]} 19... Rd8 {[%clk
0:00:16.7]} 20. d6 {[%clk 0:00:33.9]} 20... exd6 {[%clk 0:00:16.7]} 21. Rxd6
{[%clk 0:00:34.1]} 21... Qb8 {[%clk 0:00:15.7]} 22. Bxc5 {[%clk 0:00:20.5]}
22... Rxb5 {[%clk 0:00:07.7]} 23. Bxb5 {[%clk 0:00:20.3]} 23... Qc7 {[%clk
0:00:06.2]} 24. Bxb4 {[%clk 0:00:20]} 24... Bb7 {[%clk 0:00:05.2]} 25. Rad1
{[%clk 0:00:19.1]} 25... Bf8 {[%clk 0:00:03.7]} 26. Rxd7 {[%clk 0:00:18.3]}
26... Rxd7 {[%clk 0:00:04.6]} 27. Rxd7 {[%clk 0:00:18.6]} 27... Qc1+ {[%clk
0:00:05]} 28. Be1 {[%clk 0:00:19.2]} 28... Qc8 {[%clk 0:00:04.1]} 29. Qd1 {[%clk
0:00:17.8]} 29... Kg8 {[%clk 0:00:03]} 30. Rd8 {[%clk 0:00:17.9]} 30... Qc7
{[%clk 0:00:02.9]} 31. Bb4 {[%clk 0:00:16.4]} 31... Bxe4 {[%clk 0:00:01.1]} 32.
Bxf8 {[%clk 0:00:15.1]} 1-0